Cogmind - Beta 13 @@@ ROGUE MODE // 2024.05.07 @ 18:57:01 Player: CONM Result: Destroyed by D-53 Grenadier with Mini Grenade Launcher Performance ------------- Evolutions (1) 500 Regions Visited (3) 600 Robots Destroyed (14) 70 Value Destroyed (304) 304 Prototype IDs (0) 0 Alien Tech Used (0) 0 Bonus (0) 0 TOTAL SCORE: 1474 Bonus ------- None Cogmind --------- Core Integrity 0/400 Matter 242/500 Energy 99/100 System Corruption 0% Temperature Cool (0) Movement Core (100) Ox1 Location -9/Mines Parts ------- > --- POWER (1) -------- (None) > --- PROPULSION (3) --- (None) > --- UTILITY (3) ------ High-capacity Matter Pod > --- WEAPON (2) ------- (None) > --- INVENTORY (5) ---- Light Ion Engine Improved Ion Engine Armored Wheel Medium Armor Plating Light Assault Rifle Peak State ------------ > --- POWER ------------ Ion Engine > --- PROPULSION ------- Armored Wheel Armored Wheel Armored Wheel > --- UTILITY ---------- Small Storage Unit Improved Terrain Scanner Seismic Detector > --- WEAPON ----------- Light Assault Rifle Light Assault Rifle > --- INVENTORY -------- Light Ion Engine Armored Wheel Armored Wheel Armored Wheel Armored Wheel Grenade Launcher Grenade Launcher [Rating: 15] Favorites ----------- Power Ion Engine Engine Ion Engine Propulsion Armored Wheel Leg Aluminum Leg Wheel Armored Wheel Utility Seismic Detector Device Seismic Detector Storage Small Storage Unit Processor Visual Processing Unit Weapon Grenade Launcher Ballistic Gun Light Assault Rifle Launcher Grenade Launcher Build | -11 -10 -9 -9 ------- Run | Yrd Mat Mat Min Slots Evolved 2 | . . 2 . Power . | . . . . Propulsion 1 | . . 1 . Utility 1 | . . 1 . Weapon . | . . . . Parts Attached 23 | 7 6 8 2 Power 1 | 1 . . . Engine 1 | 1 . . . Core . | . . . . Reactor . | . . . . Propulsion 7 | 2 . 4 1 Treads . | . . . . Leg 3 | 2 . 1 . Wheel 4 | . . 3 1 Hover . | . . . . Flight . | . . . . Utility 6 | 2 2 2 . Device 3 | 2 . 1 . Storage 2 | . 1 1 . Processor 1 | . 1 . . Hackware . | . . . . Protection . | . . . . Artifact . | . . . . Weapon 9 | 2 4 2 1 Energy Gun . | . . . . Energy Cannon . | . . . . Ballistic Gun 5 | 2 2 . 1 Ballistic Cannon . | . . . . Launcher 4 | . 2 2 . Special Weapon . | . . . . Impact Weapon . | . . . . Slashing Weapon . | . . . . Piercing Weapon . | . . . . Special Melee Weapon . | . . . . Unidentified Prototypes . | . . . . Parts Lost 9 | . . . 9 Power 1 | . . . 1 Propulsion 3 | . . . 3 Utility 2 | . . . 2 Weapon 3 | . . . 3 Highest Loss Streak 5 | . . . 5 To Critical Strikes . | . . . . Average Slot Usage (%) 92 | . 100 97 84 Engine 11 | . 14 11 8 Leg 11 | . 28 3 . Wheel 18 | . . 28 29 Device 14 | . 21 15 8 Storage 13 | . 2 16 21 Processor 1 | . 4 . . Ballistic Gun 10 | . 21 6 3 Launcher 10 | . 6 15 12 Naked Turns . | . . . . Heaviest Build 21 | 9 13 21 21 Greatest Support 36 | 20 20 36 36 Greatest Overweight (x) 4 | 1 . 4 2 Average Overweight (x) . | . . . . Largest Inventory Capacity 8 | 5 8 8 8 Average Capacity 6 | 5 5 8 7 Most Carried 8 | 4 6 8 8 Average Carried 5 | 1 4 7 7 Final Capacity 8 | 5 8 8 5 Final Carried 8 | 2 6 8 5 Class Distribution -------------------- 100% | Mutant Dominant Class ---------------- Mutant | -10/Materials Mutant | -9/Materials Mutant | -9/Mines Resources | -11 -10 -9 -9 ----------- Run | Yrd Mat Mat Min Matter Collected 572 | 252 76 60 184 Remotely . | . . . . Salvage Created 271 | 14 126 131 . Parts 28 | 4 8 16 . Haulers Intercepted . | . . . . Recyclers Shooed 3 | 1 2 . . Parts Field Recycled . | . . . . Retrieved Matter . | . . . . Parts Self-Destructed . | . . . . Prevented . | . . . . Kills | -11 -10 -9 -9 ------- Run | Yrd Mat Mat Min Combat Hostiles Destroyed 10 | . 2 7 1 AOE 10 | . 2 7 1 Classes Destroyed 9 | 1 5 2 1 Worker 1 | . 1 . . Builder 1 | . 1 . . Tunneler 1 | 1 . . . Recycler 1 | . 1 . . Watcher 1 | . 1 . . Swarmer 3 | . . 3 . Grunt 4 | . 2 2 . Sentry 2 | . . 2 . Assembled 1 | . . . 1 Best Kill Streak 3 | 1 3 3 1 Combat Bots Only 3 | . 1 3 1 Max Kills in Single Turn 3 | 1 2 3 1 Gunslinging . | . . . . Exploded 3 | . 1 3 1 Melee . | . . . . Uniques/NPCs Destroyed . | . . . . Combat | -11 -10 -9 -9 -------- Run | Yrd Mat Mat Min Hostile Shots Fired 63 | . 10 30 23 Missed 15 | . 4 6 5 Damage Taken 1302 | . 91 335 876 Core 464 | . 41 48 375 Absorbed by Shields . | . . . . Core Remaining (%) 91 | 100 83 . . Volleys Fired 26 | 2 14 6 4 Largest 2 | 2 2 2 1 Hottest 60 | 40 50 60 30 Shots Fired 45 | 4 25 12 4 Gun 21 | 4 16 . 1 Cannon . | . . . . Launcher 24 | . 9 12 3 Special . | . . . . Kinetic 21 | 4 16 . 1 Thermal . | . . . . Explosive 24 | . 9 12 3 Electromagnetic . | . . . . Robot Hit Streak 9 | 4 4 9 3 Robot Miss Streak 2 | . 2 1 1 Penetration Max . | . . . . Secondary Targets . | . . . . Shots Hit Robots 28 | 4 13 8 3 Core Hits 34 | 3 15 13 3 Critical Kills . | . . . . Critical Parts Destroyed . | . . . . Critical Strikes . | . . . . Melee Attacks . | . . . . Impact . | . . . . Slashing . | . . . . Piercing . | . . . . Sneak Attacks . | . . . . Combat Hostiles . | . . . . Follow-up Attacks . | . . . . Damage Inflicted 942 | 37 433 379 93 Guns 91 | 37 48 . 6 Cannons . | . . . . Explosions 826 | . 383 356 87 Melee . | . . . . Ramming 25 | . 2 23 . Kinetic 91 | 37 48 . 6 Thermal . | . . . . Explosive 826 | . 383 356 87 Electromagnetic . | . . . . Impact . | . . . . Slashing . | . . . . Piercing . | . . . . Highest Corruption . | . . . . Average Corruption . | . . . . Corruption Purged . | . . . . Corruption Blocked . | . . . . Overload Shots . | . . . . Overflow Damage . | . . . . Projectiles . | . . . . Explosions . | . . . . Melee . | . . . . Knockbacks . | . . . . Impact . | . . . . Kinetic . | . . . . Secondary . | . . . . Self-Inflicted Damage 77 | . 10 67 . Shots 3 | . 1 2 . Rammed 3 | . . 3 . Targets Rammed 4 | . 1 3 . Kicked 1 | . 1 . . Crushed . | . . . . Highest Temperature 25 | . 25 6 . Average Temperature 8 | . 8 6 . Received Heat Transfer 160 | . 66 54 40 Siege Activations . | . . . . Robots Corrupted . | . . . . Combat Hostiles . | . . . . Parts Fried . | . . . . Impact Corruptions . | . . . . Robots Melted . | . . . . Combat Hostiles . | . . . . Parts Melted . | . . . . Heat Transferred . | . . . . Parts Sabotaged . | . . . . Parts Stolen . | . . . . Parts Stripped . | . . . . Power Chain Reactions . | . . . . Alert | -11 -10 -9 -9 ------- Run | Yrd Mat Mat Min Peak Influence 350 | 5 157 350 151 Initial 136 | . 3 . 136 Average 91 | 1 77 124 112 Maximum Alert Level 1 | . . 1 . Low Security (%) 96 | 100 100 76 100 Level 1 3 | . . 23 . Level 2 . | . . . . Level 3 . | . . . . Level 4 . | . . . . Level 5 . | . . . . High Security . | . . . . Max Security . | . . . . Squads Dispatched 1 | . . 1 . Investigation . | . . . . Extermination . | . . . . Reinforcement 1 | . . 1 . Assault . | . . . . Garrison . | . . . . Intercept . | . . . . Searches Triggered . | . . . . Construction Impeded . | . . . . Haulers Reinforced . | . . . . Active Scanning Responses . | . . . . Cargo Convoy Interrupts . | . . . . Stealth | -11 -10 -9 -9 --------- Run | Yrd Mat Mat Min Distress Signals 1 | . . 1 . Communications Jammed . | . . . . Distress Signals . | . . . . Times Spotted 20 | . 4 12 4 Peak Tracking Total 7 | . 3 7 2 Tactical Retreats 2 | . . 1 1 Traps | -11 -10 -9 -9 ------- Run | Yrd Mat Mat Min Traps Triggered . | . . . . Indirectly . | . . . . Trap Hack Attempts . | . . . . Triggered . | . . . . Disarmed . | . . . . Reprogrammed . | . . . . Reused . | . . . . Traps Extracted . | . . . . Installed . | . . . . Triggered 1 | . . . 1 Machines | -11 -10 -9 -9 ---------- Run | Yrd Mat Mat Min Machines Disabled . | . . . . Max in Single Turn . | . . . . Machines Repaired . | . . . . Machines Dismantled . | . . . . Machines Sabotaged . | . . . . Overloaded Fab Kills . | . . . . Hacking | -11 -10 -9 -9 --------- Run | Yrd Mat Mat Min Machines Accessed 3 | . 1 2 . Terminals 3 | . 1 2 . Fabricators . | . . . . Repair Stations . | . . . . Recycling Units . | . . . . Scanalyzers . | . . . . Garrison Access . | . . . . Total Hacks 6 | . 1 5 . Successful 4 | . 1 3 . Failed 2 | . . 2 . Catastrophic . | . . . . Database Lockouts . | . . . . Manual . | . . . . Terminals 6 | . 1 5 . Fabricators . | . . . . Repair Stations . | . . . . Recycling Units . | . . . . Scanalyzers . | . . . . Garrison Access . | . . . . Terminal Hacks 4 | . 1 3 . Record 1 | . . 1 . Alert Level 1 | . . 1 . Transport Status 1 | . 1 . . Zone Layout 1 | . . 1 . Fabricator Hacks . | . . . . Repair Station Hacks . | . . . . Recycling Unit Hacks . | . . . . Scanalyzer . | . . . . Garrison Access Hacks . | . . . . Unauthorized Hacks . | . . . . Terminals . | . . . . Fabricators . | . . . . Repair Stations . | . . . . Recycling Units . | . . . . Scanalyzers . | . . . . Garrison Access . | . . . . Data Cores Recovered . | . . . . Used . | . . . . Hacking Detections 2 | . . 2 . Full Trace Events 1 | . . 1 . Feedback Events . | . . . . Feedback Blocked . | . . . . Robot Schematics Acquired . | . . . . Robots Built . | . . . . Authchips . | . . . . Time . | . . . . Total Robot Build Rating . | . . . . Part Schematics Acquired . | . . . . Parts Built . | . . . . Authchips . | . . . . Time . | . . . . Total Part Build Rating . | . . . . Parts Repaired . | . . . . Time . | . . . . Parts Recycled . | . . . . Recycled Matter . | . . . . Retrieved Matter . | . . . . Retrieved Components . | . . . . Parts Scanalyzed . | . . . . Part Schematics Acquired . | . . . . Parts Damaged . | . . . . Bothacking | -11 -10 -9 -9 ------------ Run | Yrd Mat Mat Min Used RIF Installer . | . . . . Robots Hacked . | . . . . Non-combat . | . . . . Combat . | . . . . Robot Hacks Applied . | . . . . Relay Couplers Released . | . . . . Fabnet Peak Effective % . | . . . . Robots Rewired . | . . . . Allies Hacked . | . . . . Hacks Repelled . | . . . . Allies | -11 -10 -9 -9 -------- Run | Yrd Mat Mat Min Total Allies . | . . . . Largest Group . | . . . . Highest-Rated Group . | . . . . Highest-Rated Ally . | . . . . Total Orders . | . . . . Ally Attacks . | . . . . Total Damage . | . . . . Kills . | . . . . Allies Corrupted . | . . . . Allies Melted . | . . . . Intel | -11 -10 -9 -9 ------- Run | Yrd Mat Mat Min Robot Analysis Total . | . . . . Derelict Logs Recovered 1 | . . . 1 Drone Launches . | . . . . Drone Recoveries . | . . . . Exploration | -11 -10 -9 -9 ------------- Run | Yrd Mat Mat Min Turns Passed 1279 | 126 437 196 520 Spaces Moved 1021 | 91 313 165 452 Core 37 | 6 . 1 30 Treads . | . . . . Legs 413 | 85 313 15 . Wheels 571 | . . 149 422 Hover . | . . . . Flight . | . . . . Fastest Speed 50 | 50 120 90 90 Average Speed 103 | 118 120 93 91 Slowest Speed 250 | 120 120 250 150 Overloaded Moves . | . . . . Propulsion Burnouts . | . . . . Robots Hopped . | . . . . Cave-ins Triggered . | . . . . Exploration Rate (%) 36 | 5 39 24 79 Regions Visited 3 Branch Regions 1 Pre-discovered Areas . | . . . . Known Exits Taken . | . . . . Unknown Exits Taken 3 | 1 1 1 . Scrap Searched 2 | . . . 2 Spaces Dug . | . . . . Terrain Destroyed 181 | . 64 101 16 Melee . | . . . . Projectile . | . . . . AOE 181 | . 64 101 16 Terrain Rammed . | . . . . Walls Destroyed . | . . . . Machines Disabled . | . . . . Actions | -11 -10 -9 -9 --------- Run | Yrd Mat Mat Min Total 1202 | 104 350 193 555 Wait 107 | . 10 2 95 Move 1018 | 90 312 164 452 Hop . | . . . . Pick Up 16 | 5 5 5 1 Fast Attach 9 | 4 1 4 . Attach 7 | 3 . 2 2 Detach . | . . . . Swap 7 | . 5 2 . Drop 8 | . 2 5 1 Fire 26 | 2 14 6 4 Melee . | . . . . Ram 3 | . . 3 . Kick 1 | . 1 . . Crush . | . . . . Escape Stasis . | . . . . Rewire . | . . . . Trap . | . . . . Miscellaneous . | . . . . Route ------- -11/Scrapyard -10/Materials -9/Materials -9/Mines History --------- Turn | Location | Event 58 | -11/Scrapyard | Discovered new exit (range 15) 127 | -11/Scrapyard | Entered Materials 308 | -10/Materials | Build established: Mutant 402 | -10/Materials | Discovered new exit (range 17) 564 | -10/Materials | Entered another Materials area 564 | -9/Materials | Evolved 2 slots: Propulsion x1, Utility x1 754 | -9/Materials | Discovered new exit (range 6) 760 | -9/Materials | Entered Mines 827 | -9/Mines | Assembled infested the area 1205 | -9/Mines | Lost 3 parts (1p1u1w) 1252 | -9/Mines | Core integrity fell below 50% 1274 | -9/Mines | Core integrity fell below 20% 1280 | -9/Mines | Destroyed by D-53 Grenadier with Mini Grenade Launcher Last Messages --------------- 01143_ K-01 Serf collects debris. 01143_ U-05 Engineer lays Concrete. 01152_ K-01 Serf collects debris. 01159_ U-05 Engineer lays Concrete. 01160_ Grenade Launcher destroyed. 01161_ U-05 Engineer lays Concrete. 01163_ Ion Engine destroyed. 01164_ U-05 Engineer builds a Wall. 01174_ Seismic Detector destroyed. 01175_ The unstable cave ceiling collapses. 01211_ Arm. Wheel destroyed. 01211_ R-06 Scavenger destroyed. 01212_ Acquired 45 matter. 01214_ K-01 Serf collects debris. 01231_ Arm. Wheel destroyed. 01246_ Lgt. Assault Rifle destroyed. 01246_ Arm. Wheel destroyed. 01248_ The unstable cave ceiling collapses. 01258_ Sml. Storage Unit destroyed. 01260_ The unstable cave ceiling collapses. Map ----- +----------------------------------------------------+ | ????????????????# #?????## # | | ?????####??????## #??#### | | ?????# ####### """ #### | | ??????# = """ ## | | ??????# % """ # | | ??????###### #### | | ???????????# ### ###??? | | ???????????## ##?# ##????? | | ????????????#####??## #?????? | | ????????????????????## ##?????? | | ????????????????????## #?#####? | | ?????????????????????## #### ## | | ?????????????????????##[ ## # | | ????????????????????## [ ## # | | ???????????????????## ## | | ???????????????????# # | | ???????????????????# # | | ??????#####????????# # | | ????### ###?????# ### | | ???## ##?### ##### | | ???# ??# #???## | | ???# #### ####????# | | ??## ## # #?????#### | | ??# ## # #??### ### | | ??# ## #?## # ## | | ??### @ ## # #### ### | | ????# #### ## ## | | ????# d ##?# ### | | ???## #####??# ## | | ??## d##??????# ### | | ??# ########## ### ### | | ??# ## # ## # ## # | | ??# ## ### # ## | | ??# # ## ### | | ?# == | | ?## | | ??# # | | ??# # # # # | | ??# #### ## " ### #### | | ??# ????#### " #??##??#### | | ??# ???????## ##????????? | | ??# ????????## ##???????? | | ??###?????????### #####???? | | ???????????????#### #???? | | ??????????????????# ### #???? | | ??????????????????## #?# #???? | | ???????????????????## #?# #???? | | ????????????????????## ### ##### | | ?????????????????????## | | ??????????????????????# | +----------------------------------------------------+ Best States ------------- Heat Dissipation 28 Energy Generation 10 Energy Capacity 250 Matter Stores 300 Matter Capacity 500 Sight Range 18 Terrain Scan Range 16 Terrain Scan Density 10 Evasion (%) 55 Item Schematics ----------------- None Robot Schematics ------------------ None Fabricated ------------ Nothing Alien Tech Used ----------------- None Achievements -------------- None Challenges ------------ None Game ------ Seed DamperBarrageMace Manual? 0 Play Time 00:19:18 Cumulative 13.0 hours Start 2024.05.07 @ 18:32:45 End 2024.05.07 @ 18:57:01 Sessions 1 Manual Loads 0 Difficulty Rogue Special Mode None Game No. 29 Rogue 29 Adventurer 0 Explorer 0 Win Type - Total 0 Types 0/0/0/0/0/0/0/0/0 Lore% 14 Gallery% 13 Achievement% 12 Wizard Run 0 Options --------- Layout 1 ASCII 0 Keyboard 0 Movement Arrows Keybinds 0 Fullscreen 1 Font 24/Smallcaps Map View 50x40 Zoom Use 0% Tactical HUD 1 Map Filters NONE Filters NONE Steam 1 RUN: d6800a51-7a55-41e5-a851-881cdea69645